fUSD/lending_fUSD_20250609
["ID","MTS","AMOUNT","RATE_DAILY","PERIOD"]
[365170016,1749511170251,495.13,0.00016438,2]
[365170017,1749511170441,1530.25,0.00016767,2]
[365170018,1749511170499,495.13,0.00016602,2]
[365170019,1749511170737,1530.25,0.00016931,2]
[365170020,1749511170790,495.13,0.00016767,2]
[365170021,1749511171402,495.13,0.00016931,2]
[365170022,1749511172027,621.87,0.00016438,2]
[365170023,1749511172271,621.87,0.00016602,2]
[365170024,1749511172536,621.87,0.00016767,2]
[365170025,1749511172817,621.87,0.00016931,2]
[365170026,1749511172959,490.0,0.00016438,2]
[365170027,1749511173213,490.0,0.00016602,2]
[365170028,1749511173470,490.0,0.00016767,2]
[365170029,1749511173567,490.0,0.00016438,2]
[365170030,1749511173699,490.0,0.00016931,2]
[365170031,1749511173870,490.0,0.00016602,2]
[365170032,1749511174095,490.0,0.00016767,2]
[365170033,1749511174164,490.0,0.00016438,2]
[365170034,1749511174316,1372.05,0.00016438,2]
[365170035,1749511174373,490.0,0.00016438,2]
[365170036,1749511174431,490.0,0.00016931,2]
[365170037,1749511174501,490.0,0.00016602,2]
[365170038,1749511174530,-193.96991892,0.00017009,2]
[365170039,1749511174583,1372.05,0.00016602,2]
[365170040,1749511174635,490.0,0.00016602,2]
[365170041,1749511174697,490.0,0.00016438,2]
[365170042,1749511174759,490.0,0.00016767,2]
[365170043,1749511174822,1372.05,0.00016767,2]
[365170044,1749511174877,490.0,0.00016767,2]
[365170045,1749511175263,490.0,0.00016602,2]
[365170046,1749511175331,490.0,0.00016931,2]
[365170047,1749511175389,1372.05,0.00016931,2]
[365170048,1749511175449,490.0,0.00016931,2]
[365170049,1749511175519,490.0,0.00016767,2]
[365170050,1749511175790,490.0,0.00016931,2]
[365170051,1749511178309,490.0,0.00016438,2]
[365170052,1749511178547,490.0,0.00016602,2]
[365170053,1749511178670,490.0,0.00016438,2]
[365170054,1749511178833,490.0,0.00016767,2]
[365170055,1749511178940,490.0,0.00016602,2]
[365170056,1749511179093,490.0,0.00016931,2]
[365170057,1749511179257,490.0,0.00016767,2]
[365170058,1749511179533,490.0,0.00016931,2]
[365170059,1749511179653,490.0,0.00016438,2]
[365170060,1749511179929,490.0,0.00016602,2]
[365170061,1749511180138,480.0,0.00016438,2]
[365170062,1749511180196,490.0,0.00016767,2]
[365170063,1749511180460,490.0,0.00016931,2]
[365170064,1749511180556,480.0,0.00016438,2]
[365170065,1749511180776,954.01,0.00016438,2]
[365170066,1749511180990,490.0,0.00016438,2]
[365170067,1749511181049,954.01,0.00016602,2]
[365170068,1749511181242,490.0,0.00016602,2]
[365170069,1749511181310,954.01,0.00016767,2]
[365170070,1749511181668,490.0,0.00016767,2]
[365170071,1749511181730,954.01,0.00016931,2]
[365170072,1749511181793,490.0,0.00016931,2]
[365170073,1749511183569,480.0,0.00016438,2]
[365170074,1749511184873,-177.80822872,0.00017009,2]
[365170075,1749511186536,480.0,0.00016438,2]
[365170076,1749511187159,864.01,0.00016438,2]
[365170077,1749511187411,490.0,0.00016438,2]
[365170078,1749511187465,864.01,0.00016602,2]
[365170079,1749511187666,864.01,0.00016767,2]
[365170080,1749511187741,490.0,0.00016602,2]
[365170081,1749511187930,864.01,0.00016931,2]
[365170082,1749511188088,490.0,0.00016767,2]
[365170083,1749511188152,602.63,0.00016438,2]
[365170084,1749511188273,623.54654228,0.00016931,2]
[365170085,1749511188362,602.63,0.00016602,2]
[365170086,1749511188443,566.38,0.00016438,2]
[365170087,1749511188656,490.0,0.00016438,2]
[365170088,1749511188728,602.63,0.00016767,2]
[365170089,1749511188786,566.38,0.00016602,2]
[365170090,1749511188911,490.0,0.00016602,2]
[365170091,1749511188982,602.63,0.00016931,2]
[365170092,1749511189035,566.38,0.00016767,2]
[365170093,1749511189090,490.0,0.00016438,2]
[365170094,1749511189193,490.0,0.00016767,2]
[365170095,1749511189258,566.38,0.00016931,2]
[365170096,1749511189321,490.0,0.00016602,2]
[365170097,1749511189456,490.0,0.00016931,2]
[365170098,1749511189540,490.0,0.00016767,2]
[365170099,1749511189791,490.0,0.00016931,2]
[365170100,1749511190686,-186.88879322,0.00017009,2]
[365170101,1749511191229,490.0,0.00016438,2]
[365170102,1749511191531,490.0,0.00016602,2]
[365170103,1749511192108,490.0,0.00016767,2]
[365170104,1749511192183,490.0,0.00016931,2]
[365170105,1749511192824,-292.77322553,0.00017009,2]
[365170106,1749511192880,490.0,0.00016438,2]
[365170107,1749511193044,490.0,0.00016438,2]
[365170108,1749511193143,490.0,0.00016602,2]
[365170109,1749511193296,490.0,0.00016602,2]
[365170110,1749511193397,490.0,0.00016767,2]
[365170111,1749511193539,490.0,0.00016767,2]
[365170112,1749511193800,490.0,0.00016931,2]
[365170113,1749511193872,490.0,0.00016931,2]
[365170114,1749511196986,490.0,0.00016438,2]
[365170115,1749511197235,490.0,0.00016602,2]
[365170116,1749511197483,490.0,0.00016767,2]
[365170117,1749511197733,490.0,0.00016931,2]
[365170118,1749511198729,490.0,0.00016438,2]
[365170119,1749511198807,-441.5234536,0.00017009,2]
[365170120,1749511198957,490.0,0.00016602,2]
[365170121,1749511199258,490.0,0.00016767,2]
[365170122,1749511199516,490.0,0.00016931,2]
[365170123,1749511200399,490.0,0.00016438,2]
[365170124,1749511200647,185.08340212,0.00016602,2]
[365170125,1749511200673,304.91659788,0.00016602,2]
[365170126,1749511201521,-216.82149945,0.00016767,2]
[365170127,1749511202784,490.0,0.00016438,2]
[365170128,1749511202819,490.0,0.00016438,2]
[365170129,1749511203038,490.0,0.00016602,2]
[365170130,1749511203084,490.0,0.00016602,2]
[365170131,1749511204741,438.79037733,0.00016438,2]
[365170132,1749511204767,51.20962267,0.00016438,2]
[365170133,1749511205012,490.0,0.00016602,2]
[365170134,1749511205909,1194.48,0.00016438,2]
[365170135,1749511206057,480.0,0.00016438,2]
[365170136,1749511206187,488.01735254,0.00016602,2]
[365170137,1749511207131,-157.91991573,0.00016602,2]
[365170138,1749511208289,1645.11,0.00016438,2]
[365170139,1749511210440,-173.86162008,0.00016602,2]
[365170140,1749511212725,-301.47368583,0.00016602,2]
[365170141,1749511213277,490.0,0.00016438,2]
[365170142,1749511213662,568.59697521,0.00016438,2]
[365170143,1749511213686,308.73302479,0.00016438,2]
[365170144,1749511213746,2394.97395042,0.00016519,2]
[365170145,1749511213770,2703.70697521,0.00016519,2]
[365170146,1749511213791,659.28344537,0.00016519,2]
[365170147,1749511214928,-73.20742582,0.00016602,2]
[365170148,1749511214958,-106.46735254,0.00016602,2]
[365170149,1749511215147,521.56,0.00016438,2]
[365170150,1749511217509,470.75,0.00016438,2]
[365170151,1749511218283,-268.60379067,0.00016602,2]
[365170152,1749511220496,-151.0,0.00016602,2]
[365170153,1749511221030,480.0,0.00016438,2]
[365170154,1749511222230,170.52,0.00016438,2]
[365170155,1749511222523,-250.0,0.00016602,2]
[365170156,1749511223042,401.59352984,0.00016438,2]
[365170157,1749511223065,78.40647016,0.00016438,2]
[365170158,1749511223333,490.0,0.00016438,2]
[365170159,1749511224060,480.0,0.00016438,2]
[365170160,1749511224116,490.0,0.00016438,2]
[365170161,1749511224631,480.0,0.00016438,2]
[365170162,1749511224674,-200.0,0.00016602,2]
[365170163,1749511224889,546.22,0.00016438,2]
[365170164,1749511225131,139.08050505,0.00016438,2]
[365170165,1749511225154,202.73779537,0.00016438,2]
[365170166,1749511226033,1046.26,0.00016438,2]
[365170167,1749511227050,-200.0,0.00016602,2]
[365170168,1749511227515,528.45,0.00016438,2]
[365170169,1749511228483,569.95,0.00016438,2]
[365170170,1749511228519,356.30917984,0.00016438,2]
[365170171,1749511228545,222.86082016,0.00016438,2]
[365170172,1749511228719,792.89,0.00016438,2]
[365170173,1749511228811,490.0,0.00016438,2]
[365170174,1749511228844,480.0,0.00016438,2]
[365170175,1749511229122,-214.0,0.00016602,2]
[365170176,1749511231257,490.0,0.00016438,2]
[365170177,1749511231903,-225.97007529,0.00016602,2]
[365170178,1749511232471,227.95615505,0.00016438,2]
[365170179,1749511232497,262.04384495,0.00016438,2]
[365170180,1749511234084,-29.0687815,0.00016602,2]
[365170181,1749511234113,-263.05114321,0.00016602,2]
[365170182,1749511234141,536.15,0.00016438,2]
[365170183,1749511234418,490.0,0.00016438,2]
[365170184,1749511236173,490.0,0.00016438,2]
[365170185,1749511236215,-151.0,0.00016602,2]
[365170186,1749511236640,490.0,0.00016438,2]
[365170187,1749511236820,435.51313026,0.00016438,2]
[365170188,1749511238470,-54.48686974,0.00016438,2]
[365170189,1749511238497,-75.94885679,0.00016602,2]
[365170190,1749511238526,-20.56427347,0.00016602,2]
[365170191,1749511242354,-168.89658637,0.00016438,2]
[365170192,1749511243948,-204.24566359,0.00016438,2]
[365170193,1749511246106,-116.85775004,0.00016438,2]
[365170194,1749511246133,-34.14224996,0.00016438,2]
[365170195,1749511250089,-249.69843463,0.00016437,2]
[365170196,1749511253645,-50.30156537,0.00016437,2]
[365170197,1749511253675,-100.69843463,0.00016438,2]
[365170198,1749511255279,-236.93795156,0.00016438,2]
[365170199,1749511257430,-151.0,0.00016438,2]
[365170200,1749511260809,-27.46136385,0.00016438,2]
[365170201,1749511260838,-266.04535218,0.00016438,2]
[365170202,1749511263199,-163.95681925,0.00016437,2]
[365170203,1749511265420,-136.04318075,0.00016437,2]
[365170204,1749511265444,-63.95681925,0.00016438,2]
[365170205,1749511267701,-159.99782857,0.00016438,2]
[365170206,1749511267729,-104.12481476,0.00016438,2]
[365170207,1749511267877,214.0,0.00024658,120]
[365170208,1749511269941,-385.87518524,0.00016438,2]
[365170209,1749511269966,-19.12481476,0.00016438,2]
[365170210,1749511272109,-151.0,0.00016438,2]
[365170211,1749511275566,-219.89658637,0.00016438,2]
[365170212,1749511277862,-151.0,0.00016438,2]
[365170213,1749511280537,-18.10859887,0.00016438,2]
[365170214,1749511280561,-161.08617143,0.00016438,2]
[365170215,1749511282342,-252.997572,0.00016438,2]
[365170216,1749511284931,-75.91625657,0.00016438,2]
[365170217,1749511284956,-145.7370274,0.00016438,2]
[365170218,1749511288367,-151.0,0.00016438,2]
[365170219,1749511291778,-151.0,0.00016438,2]
[365170220,1749511294778,-42.2629726,0.00016438,2]
[365170221,1749511294802,-108.7370274,0.00016438,2]
[365170222,1749511296466,-296.34420104,0.00016438,2]
[365170223,1749511297970,-118.47877156,0.00016438,2]
[365170224,1749511298000,-45.52122844,0.00016438,2]
[365170225,1749511299168,842.44,0.000165,30]
[365170226,1749511301800,-307.10800911,0.00016438,2]
[365170227,1749511304044,-137.37076245,0.00016438,2]
[365170228,1749511304077,-51.53204227,0.00016438,2]
[365170229,1749511305752,-151.0,0.00016438,2]
[365170230,1749511309010,-161.02097606,0.00016438,2]
[365170231,1749511311567,-126.44698167,0.00016438,2]
[365170232,1749511311594,-58.63074264,0.00016438,2]
[365170233,1749511313316,-341.76959788,0.00016438,2]
[365170234,1749511315570,-89.59965948,0.00016438,2]
[365170235,1749511315594,-248.24284715,0.00016438,2]
[365170237,1749511318134,-241.75715285,0.00016438,2]
[365170238,1749511318165,-0.02272833,0.00016438,2]
[365170240,1749511319654,-193.49448403,0.00016438,2]
[365170241,1749511321773,-248.98940508,0.00016438,2]
[365170242,1749511324117,-47.49338256,0.00016438,2]
[365170243,1749511324147,-132.03434403,0.00016438,2]
[365170244,1749511325846,-151.0,0.00016342,2]
[365170245,1749511328267,-151.7267117,0.00016342,2]
[365170248,1749511334822,-323.68862881,0.00016342,2]
[365170249,1749511336474,-152.62465949,0.00016342,2]
[365170250,1749511336502,-27.20844147,0.00016438,2]
[365170251,1749511338404,-233.26759998,0.00016438,2]
[365170252,1749511343515,-186.89929906,0.00016438,2]
[365170253,1749511346190,-262.89,0.00016438,2]
[365170254,1749511350491,-336.46751508,0.00016438,2]
[365170255,1749511353570,-216.6947444,0.00016356,2]
[365170256,1749511356992,-151.0,0.00016356,2]
[365170257,1749511360730,-200.0,0.00016356,2]
[365170258,1749511366403,-250.0,0.00016356,2]
[365170259,1749511369471,-146.5631026,0.00016356,2]
[365170260,1749511369497,-11.92393732,0.00016438,2]
[365170261,1749511374641,-70.63886306,0.00016438,2]
[365170262,1749511374665,-162.86264759,0.00016438,2]
[365170263,1749511376544,-169.28061633,0.00016438,2]
[365170264,1749511378117,-157.85673608,0.00016438,2]
[365170265,1749511378141,-6.05554721,0.00016438,2]
[365170266,1749511382952,-240.0972819,0.00016437,2]
[365170267,1749511385168,-59.9027181,0.00016437,2]
[365170268,1749511385196,-133.13287163,0.00016438,2]
[365170269,1749511387263,-315.90445408,0.00016438,2]
[365170270,1749511391941,-34.90712708,0.00016438,2]
[365170271,1749511391967,-338.67287292,0.00016438,2]
[365170272,1749511393488,-187.22664632,0.00016438,2]
[365170273,1749511398639,-182.51847974,0.00016438,2]
[365170274,1749511401975,-45.69200102,0.00016438,2]
[365170275,1749511401998,-283.84656089,0.00016438,2]
[365170276,1749511407107,-206.15343911,0.00016438,2]
[365170277,1749511407131,-51.24465261,0.00016438,2]
[365170278,1749511410118,-270.84442396,0.00016438,2]
[365170279,1749511414154,-228.25558614,0.00016438,2]
[365170280,1749511418673,-103.34533729,0.00016438,2]
[365170281,1749511418697,-88.97288302,0.00016438,2]
[365170282,1749511422276,-391.02711698,0.00016438,2]
[365170283,1749511422299,-26.56277169,0.00016438,2]
[365170284,1749511453325,-151.0,0.00016266,2]
[365170286,1749511470786,-99.0,0.00016266,2]
[365170287,1749511470814,-99.3463893,0.00016352,2]
[365170288,1749511477842,-151.0,0.00016352,2]
[365170289,1749511481480,-49.6536107,0.00016352,2]
[365170290,1749511481506,-191.80855129,0.00016437,2]
[365170291,1749511495359,-175.21,0.00016437,2]
[365170292,1749511509978,-132.98144871,0.00016437,2]
[365170293,1749511510003,-248.87182559,0.00016437,2]
[365170294,1749511526214,-159.29,0.000164,2]
[365170295,1749511539396,-270.04597498,0.000164,2]
[365170296,1749511554967,-250.0,0.00016338,2]
[365170298,1749511569416,-181.31501508,0.00016338,2]
[365170299,1749511587319,150.0,0.00015993,7]
[365170300,1749511588562,-287.627789,0.00016338,2]
[365170301,1749511595908,602.61553679,0.0002465,120]
[365170302,1749511599677,-289.28656507,0.00016269,2]
[365170303,1749511615811,-160.50276746,0.00016269,2]
[365170304,1749511629492,-151.0,0.00016269,2]
[365170305,1749511635074,200.0,0.000168,6]
[365170306,1749511637178,500.0,0.000169,6]
[365170307,1749511639534,235.34,0.00015917,2]
[365170308,1749511645556,-298.09753039,0.00016269,2]
[365170309,1749511660336,-117.16539656,0.00016269,2]
[365170310,1749511660365,-38.66923776,0.00016338,2]
[365170311,1749511674507,-382.35368354,0.00016338,2]
[365170312,1749511690576,-176.14167058,0.00016338,2]
[365170314,1749511705051,-201.0,0.00016084,2]
[365170315,1749511705076,-62.49478263,0.00016338,2]
[365170316,1749511719497,-227.19403926,0.00016338,2]
[365170318,1749511722516,1218.66511979,0.00016437,5]
[365170320,1749511734563,-167.17464277,0.00016338,2]
[365170321,1749511750007,-182.3077415,0.00016338,2]
[365170322,1749511764475,-498.7506238,0.00016338,2]
[365170323,1749511773144,-4941.895098,0.00016338,2]
[365170333,1749511779505,-300.0,0.00016338,2]
[365170334,1749511789230,812.93,0.00015886,2]
[365170335,1749511794407,-316.46050303,0.00016338,2]
[365170337,1749511810585,-202.57,0.00016338,2]
[365170338,1749511825043,-257.73821788,0.00016338,2]
[365170348,1749511831775,-1024.21016737,0.00016338,2]
[365170349,1749511831785,-207.46,0.00016363,2]
[365170351,1749511831795,-300.0,0.00016369,2]
[365170352,1749511831804,-1200.0,0.00016399,2]
[365170353,1749511831814,-27266.14733151,0.000164,2]
[365170354,1749511831824,-251.12817441,0.00016437,2]
[365170355,1749511831834,-500.0,0.00016437,2]
[365170356,1749511831843,-500.0,0.00016437,2]
[365170357,1749511831852,-861.39722831,0.00016438,2]
[365170358,1749511831862,-490.0,0.00016438,2]
[365170359,1749511831872,-490.0,0.00016438,2]
[365170360,1749511831882,-490.0,0.00016438,2]
[365170361,1749511831893,-528.68,0.00016438,2]
[365170362,1749511831903,-490.0,0.00016438,2]
[365170363,1749511831912,-480.0,0.00016438,2]
[365170364,1749511831923,-568.66,0.00016438,2]
[365170365,1749511831933,-490.0,0.00016438,2]
[365170366,1749511831942,-490.0,0.00016438,2]
[365170367,1749511831951,-480.0,0.00016438,2]
[365170368,1749511831961,-490.0,0.00016438,2]
[365170369,1749511831970,-480.0,0.00016438,2]
[365170370,1749511831979,-612.88,0.00016438,2]
[365170371,1749511831990,-490.0,0.00016438,2]
[365170372,1749511832000,-480.0,0.00016438,2]
[365170373,1749511832010,-480.0,0.00016438,2]
[365170374,1749511832020,-490.0,0.00016438,2]
[365170375,1749511832029,-490.0,0.00016438,2]
[365170376,1749511832039,-490.0,0.00016438,2]
[365170377,1749511832049,-490.0,0.00016438,2]
[365170378,1749511832058,-490.0,0.00016438,2]
[365170379,1749511832068,-490.0,0.00016438,2]
[365170380,1749511832077,-490.0,0.00016438,2]
[365170381,1749511832086,-480.0,0.00016438,2]
[365170382,1749511832095,-490.0,0.00016438,2]
[365170383,1749511832104,-490.0,0.00016438,2]
[365170384,1749511832114,-490.0,0.00016438,2]
[365170385,1749511832124,-490.0,0.00016438,2]
[365170386,1749511832133,-681.27,0.00016438,2]
[365170387,1749511832143,-171.73029101,0.00016438,2]
[365170388,1749511832155,-318.26970899,0.00016438,2]
[365170389,1749511832165,-811.16,0.00016438,2]
[365170391,1749511832175,-490.0,0.00016438,2]
[365170393,1749511832184,-490.0,0.00016438,2]
[365170394,1749511832193,-490.0,0.00016438,2]
[365170395,1749511832202,-490.0,0.00016438,2]
[365170396,1749511832212,-490.0,0.00016438,2]
[365170397,1749511832221,-490.0,0.00016438,2]
[365170398,1749511832230,-480.0,0.00016438,2]
[365170399,1749511832239,-490.0,0.00016438,2]
[365170400,1749511832249,-312.79293415,0.00016438,2]
[365170401,1749511832258,-480.0,0.00016438,2]
[365170402,1749511832267,-538.15326011,0.00016438,2]
[365170403,1749511832276,-490.0,0.00016438,2]
[365170404,1749511832285,-490.0,0.00016438,2]
[365170406,1749511832294,-1203.79,0.00016438,2]
[365170408,1749511832306,-551.65699691,0.00016438,2]
[365170411,1749511832315,-490.0,0.00016438,2]
[365170415,1749511832324,-490.0,0.00016438,2]
[365170417,1749511832333,-503.99484752,0.00016438,2]
[365170419,1749511832343,-480.0,0.00016438,2]
[365170421,1749511832352,-525.66116443,0.00016438,2]
[365170423,1749511832361,-490.0,0.00016438,2]
[365170424,1749511832370,-873.43,0.00016438,2]
[365170426,1749511832382,-480.0,0.00016438,2]
[365170429,1749511832394,-480.0,0.00016438,2]
[365170430,1749511832404,-480.0,0.00016438,2]
[365170432,1749511832414,-490.0,0.00016438,2]
[365170434,1749511832423,-480.0,0.00016438,2]
[365170436,1749511832432,-490.0,0.00016438,2]
[365170439,1749511832442,-480.0,0.00016438,2]
[365170441,1749511832452,-490.0,0.00016438,2]
[365170443,1749511832461,-480.0,0.00016438,2]
[365170445,1749511832471,-490.0,0.00016438,2]
[365170447,1749511832480,-490.0,0.00016438,2]
[365170449,1749511832491,-490.0,0.00016438,2]
[365170451,1749511832501,-490.0,0.00016438,2]
[365170453,1749511832510,-480.0,0.00016438,2]
[365170455,1749511832519,-491.34,0.00016438,2]
[365170457,1749511832528,-480.0,0.00016438,2]
[365170458,1749511832538,-490.0,0.00016438,2]
[365170460,1749511832548,-603.58906313,0.00016438,2]
[365170462,1749511832557,-490.0,0.00016438,2]
[365170464,1749511832567,-513.06,0.00016438,2]
[365170466,1749511832576,-490.0,0.00016438,2]
[365170468,1749511832585,-490.0,0.00016438,2]
[365170470,1749511832595,-490.0,0.00016438,2]
[365170471,1749511832604,-490.0,0.00016438,2]
[365170472,1749511832613,-490.0,0.00016438,2]
[365170473,1749511832622,-490.0,0.00016438,2]
[365170474,1749511832631,-565.93,0.00016438,2]
[365170475,1749511832640,-490.0,0.00016438,2]
[365170476,1749511832649,-490.0,0.00016438,2]
[365170477,1749511832658,-303.30751899,0.00016438,2]
[365170478,1749511832667,-490.0,0.00016438,2]
[365170479,1749511832675,-490.0,0.00016438,2]
[365170480,1749511832684,-480.0,0.00016438,2]
[365170481,1749511832694,-490.0,0.00016438,2]
[365170482,1749511832702,-490.0,0.00016438,2]
[365170483,1749511832711,-480.0,0.00016438,2]
[365170484,1749511832720,-490.0,0.00016438,2]
[365170486,1749511832729,-490.0,0.00016438,2]
[365170488,1749511832738,-490.0,0.00016438,2]
[365170490,1749511832747,-490.0,0.00016438,2]
[365170492,1749511832756,-490.0,0.00016438,2]
[365170494,1749511832766,-490.0,0.00016438,2]
[365170496,1749511832775,-490.0,0.00016438,2]
[365170497,1749511832784,-490.0,0.00016438,2]
[365170499,1749511832794,-490.0,0.00016438,2]
[365170501,1749511832803,-490.0,0.00016438,2]
[365170503,1749511832812,-686.65,0.00016438,2]
[365170505,1749511832822,-490.0,0.00016438,2]
[365170507,1749511832831,-480.0,0.00016438,2]
[365170509,1749511832840,-490.0,0.00016438,2]
[365170511,1749511832850,-490.0,0.00016438,2]
[365170513,1749511832859,-490.0,0.00016438,2]
[365170515,1749511832868,-480.0,0.00016438,2]
[365170517,1749511832877,-490.0,0.00016438,2]
[365170519,1749511832886,-490.0,0.00016438,2]
[365170521,1749511832895,-490.0,0.00016438,2]
[365170523,1749511832904,-490.0,0.00016438,2]
[365170525,1749511832913,-756.82,0.00016438,2]
[365170527,1749511832922,-490.0,0.00016438,2]
[365170529,1749511832931,-490.0,0.00016438,2]
[365170531,1749511832941,-626.45,0.00016438,2]
[365170533,1749511832951,-490.0,0.00016438,2]
[365170535,1749511832963,-480.0,0.00016438,2]
[365170537,1749511832972,-510.58,0.00016438,2]
[365170539,1749511832981,-483.58450195,0.00016438,2]
[365170542,1749511832995,-6.41549805,0.00016438,2]
[365170544,1749511833005,-480.0,0.00016438,2]
[365170546,1749511833014,-490.0,0.00016438,2]
[365170548,1749511833023,-490.0,0.00016438,2]
[365170550,1749511833032,-200.6989594,0.00016438,2]
[365170553,1749511833052,-289.3010406,0.00016438,2]
[365170555,1749511833061,-315.4473571,0.00016438,2]
[365170559,1749511833094,-164.5526429,0.00016438,2]
[365170561,1749511833104,-355.73127386,0.00016438,2]
[365170563,1749511833116,-124.26872614,0.00016438,2]
[365170565,1749511833126,-490.0,0.00016438,2]
[365170567,1749511833135,-527.67074686,0.00016438,2]
[365170569,1749511833147,-9.12925314,0.00016438,2]
[365170571,1749511833157,-490.0,0.00016438,2]
[365170573,1749511833166,-51.86782387,0.00016438,2]
[365170577,1749511833190,-438.81217613,0.00016438,2]
[365170579,1749511833200,-275.09565958,0.00016438,2]
[365170581,1749511833211,-214.90434042,0.00016438,2]
[365170583,1749511833220,-490.0,0.00016438,2]
[365170585,1749511833229,-37.91086363,0.00016438,2]
[365170587,1749511833241,-245.88278856,0.00016438,2]
[365170589,1749511833250,-178.93656632,0.00016438,2]
[365170610,1749511840179,-187.47931102,0.00016437,2]
[365170611,1749511840190,-301.06343368,0.00016438,2]
[365170612,1749511840199,-490.0,0.00016438,2]
[365170613,1749511840208,-426.29739792,0.00016438,2]
[365170614,1749511840220,-63.70260208,0.00016438,2]
[365170615,1749511840229,-292.75739842,0.00016438,2]
[365170616,1749511840338,-197.24260158,0.00016438,2]
[365170617,1749511840348,-490.0,0.00016438,2]
[365170618,1749511840359,-480.0,0.00016438,2]
[365170619,1749511840368,-480.0,0.00016438,2]
[365170620,1749511840378,-666.57,0.00016438,2]
[365170621,1749511840388,-480.0,0.00016438,2]
[365170622,1749511840398,-480.0,0.00016438,2]
[365170623,1749511840408,-366.29312018,0.00016438,2]
[365170624,1749511840418,-420.0,0.00016438,2]
[365170625,1749511840427,-490.0,0.00016438,2]
[365170626,1749511840437,-490.0,0.00016438,2]
[365170627,1749511840446,-490.0,0.00016438,2]
[365170628,1749511840456,-490.0,0.00016438,2]
[365170629,1749511840466,-490.0,0.00016438,2]
[365170630,1749511840475,-490.0,0.00016438,2]
[365170631,1749511840485,-480.0,0.00016438,2]
[365170632,1749511840495,-300.0,0.00016438,2]
[365170633,1749511840505,-490.0,0.00016438,2]
[365170634,1749511840515,-480.0,0.00016438,2]
[365170635,1749511840524,-480.0,0.00016438,2]
[365170636,1749511840534,-490.0,0.00016438,2]
[365170637,1749511840543,-490.0,0.00016438,2]
[365170638,1749511840553,-490.0,0.00016438,2]
[365170639,1749511840563,-480.0,0.00016438,2]
[365170640,1749511840572,-360.0,0.00016438,2]
[365170641,1749511840581,-490.0,0.00016438,2]
[365170642,1749511840591,-490.0,0.00016438,2]
[365170643,1749511840601,-490.0,0.00016438,2]
[365170645,1749511840610,-294.31971086,0.00016438,2]
[365170647,1749511840620,-480.0,0.00016438,2]
[365170648,1749511840630,-905.53,0.00016438,2]
[365170649,1749511840640,-490.0,0.00016438,2]
[365170650,1749511840649,-480.0,0.00016438,2]
[365170651,1749511840659,-543.99,0.00016438,2]
[365170652,1749511840669,-490.0,0.00016438,2]
[365170653,1749511840678,-490.0,0.00016438,2]
[365170654,1749511840688,-490.0,0.00016438,2]
[365170655,1749511840697,-490.0,0.00016438,2]
[365170656,1749511840936,-490.0,0.00016438,2]
[365170657,1749511840946,-1195.08,0.00016438,2]